[Event "Titled Tuesday Blitz May 30 Late 2023"]
[White "Panesar Vedant"]
[Black "Pinheiro, Iung Alicio de O."]
[WhiteFideId "35033018"]
[BlackFideId "2104350"]
[WhiteElo "2347"]
[BlackElo "2283"]
[Result "1/2-1/2"]
[Round "11"]
[TimeControl "180+2"]
[Date "2023.05.31"]
[WhiteClock "0:00:20"]
[BlackClock "0:00:16"]

1. e4 {[%clk 0:03:00]}  e5 {[%clk 0:02:58]} 2. Nf3 {[%clk 0:03:00]}  Nc6 {[%clk 0:02:58]} 3. Bb5 {[%clk 0:03:00]}  a6 {[%clk 0:02:58]} 4. Ba4 {[%clk 0:03:00]}  d6 {[%clk 0:02:58]} 5. O-O {[%clk 0:02:58]}  Bd7 {[%clk 0:02:58]} 6. d4 {[%clk 0:02:57]}  b5 {[%clk 0:02:51]} 7. Bb3 {[%clk 0:02:55]}  Nxd4 {[%clk 0:02:51]} 8. Nxd4 {[%clk 0:02:54]}  exd4 {[%clk 0:02:52]} 9. c3 {[%clk 0:02:53]}  d3 {[%clk 0:02:42]} 10. Qxd3 {[%clk 0:02:47]}  Nf6 {[%clk 0:02:42]} 11. c4 {[%clk 0:02:44]}  Be7 {[%clk 0:02:26]} 12. Nc3 {[%clk 0:02:41]}  O-O {[%clk 0:02:06]} 13. f3 {[%clk 0:02:38]}  c6 {[%clk 0:01:48]} 14. Bf4 {[%clk 0:02:31]}  Be6 {[%clk 0:01:41]} 15. Kh1 {[%clk 0:02:27]}  Nd7 {[%clk 0:01:29]} 16. cxb5 {[%clk 0:02:07]}  axb5 {[%clk 0:01:22]} 17. Bxe6 {[%clk 0:02:06]}  fxe6 {[%clk 0:01:23]} 18. Bg3 {[%clk 0:01:58]}  Nc5 {[%clk 0:01:19]} 19. Qc2 {[%clk 0:01:55]}  e5 {[%clk 0:01:19]} 20. Rfd1 {[%clk 0:01:51]}  Qc8 {[%clk 0:01:18]} 21. b4 {[%clk 0:01:48]}  Ne6 {[%clk 0:01:18]} 22. Bf2 {[%clk 0:01:45]}  Ra3 {[%clk 0:01:10]} 23. Qb2 {[%clk 0:01:42]}  Qa6 {[%clk 0:01:08]} 24. Rd2 {[%clk 0:01:35]}  Kh8 {[%clk 0:01:00]} 25. Rad1 {[%clk 0:01:34]}  Ra8 {[%clk 0:00:57]} 26. h3 {[%clk 0:01:30]}  h6 {[%clk 0:00:58]} 27. g3 {[%clk 0:01:26]}  Nd4 {[%clk 0:00:56]} 28. Kg2 {[%clk 0:01:19]}  Bg5 {[%clk 0:00:51]} 29. Rd3 {[%clk 0:01:17]}  Bf6 {[%clk 0:00:51]} 30. R3d2 {[%clk 0:01:13]}  c5 {[%clk 0:00:49]} 31. bxc5 {[%clk 0:01:04]}  dxc5 {[%clk 0:00:50]} 32. Bxd4 {[%clk 0:00:57]}  cxd4 {[%clk 0:00:38]} 33. Nxb5 {[%clk 0:00:56]}  Rxa2 {[%clk 0:00:39]} 34. Qxa2 {[%clk 0:00:51]}  Qxa2 {[%clk 0:00:40]} 35. Rxa2 {[%clk 0:00:51]}  Rxa2+ {[%clk 0:00:41]} 36. Kg1 {[%clk 0:00:51]}  Rb2 {[%clk 0:00:39]} 37. Nd6 {[%clk 0:00:50]}  Kg8 {[%clk 0:00:39]} 38. Rd3 {[%clk 0:00:47]}  Bg5 {[%clk 0:00:38]} 39. Kf1 {[%clk 0:00:40]}  Be3 {[%clk 0:00:37]} 40. Nf5 {[%clk 0:00:38]}  Rf2+ {[%clk 0:00:35]} 41. Ke1 {[%clk 0:00:38]}  Rxf3 {[%clk 0:00:35]} 42. Ke2 {[%clk 0:00:36]}  Rf2+ {[%clk 0:00:35]} 43. Ke1 {[%clk 0:00:36]}  Rh2 {[%clk 0:00:36]} 44. Nxe3 {[%clk 0:00:35]}  dxe3 {[%clk 0:00:36]} 45. h4 {[%clk 0:00:35]}  e2 {[%clk 0:00:33]} 46. Re3 {[%clk 0:00:32]}  Rg2 {[%clk 0:00:33]} 47. Rf3 {[%clk 0:00:27]}  Kh7 {[%clk 0:00:29]} 48. h5 {[%clk 0:00:27]}  Rh2 {[%clk 0:00:28]} 49. Rf5 {[%clk 0:00:23]}  Rg2 {[%clk 0:00:26]} 50. Rxe5 {[%clk 0:00:23]}  Kg8 {[%clk 0:00:25]} 51. Rf5 {[%clk 0:00:22]}  Rh2 {[%clk 0:00:20]} 52. e5 {[%clk 0:00:21]}  Rh1+ {[%clk 0:00:12]} 53. Kxe2 {[%clk 0:00:20]}  Ra1 {[%clk 0:00:13]} 54. e6 {[%clk 0:00:19]}  Ra6 {[%clk 0:00:12]} 55. Re5 {[%clk 0:00:18]}  Kf8 {[%clk 0:00:12]} 56. e7+ {[%clk 0:00:18]}  Ke8 {[%clk 0:00:12]} 57. Kf3 {[%clk 0:00:19]}  Ra7 {[%clk 0:00:11]} 58. Kf4 {[%clk 0:00:17]}  Rxe7 {[%clk 0:00:11]} 59. Ra5 {[%clk 0:00:16]}  Kf7 {[%clk 0:00:11]} 60. Kf5 {[%clk 0:00:16]}  Rb7 {[%clk 0:00:11]} 61. Rd5 {[%clk 0:00:15]}  Ra7 {[%clk 0:00:11]} 62. Rb5 {[%clk 0:00:15]}  Re7 {[%clk 0:00:12]} 63. Rd5 {[%clk 0:00:14]}  Ra7 {[%clk 0:00:11]} 64. g4 {[%clk 0:00:14]}  Re7 {[%clk 0:00:11]} 65. Rb5 {[%clk 0:00:14]}  Ra7 {[%clk 0:00:11]} 66. Ke5 {[%clk 0:00:15]}  Re7+ {[%clk 0:00:11]} 67. Kd6 {[%clk 0:00:15]}  Re6+ {[%clk 0:00:11]} 68. Kd5 {[%clk 0:00:15]}  Re1 {[%clk 0:00:12]} 69. Rb6 {[%clk 0:00:14]}  Rg1 {[%clk 0:00:11]} 70. Rg6 {[%clk 0:00:15]}  Re1 {[%clk 0:00:10]} 71. Kd4 {[%clk 0:00:14]}  Re7 {[%clk 0:00:09]} 72. Ra6 {[%clk 0:00:14]}  Re1 {[%clk 0:00:08]} 73. Kd5 {[%clk 0:00:13]}  Rg1 {[%clk 0:00:08]} 74. Ra4 {[%clk 0:00:13]}  Re1 {[%clk 0:00:07]} 75. Rf4+ {[%clk 0:00:12]}  Ke7 {[%clk 0:00:07]} 76. Rf5 {[%clk 0:00:10]}  Rd1+ {[%clk 0:00:04]} 77. Ke4 {[%clk 0:00:10]}  Re1+ {[%clk 0:00:05]} 78. Kd3 {[%clk 0:00:10]}  Ra1 {[%clk 0:00:06]} 79. Re5+ {[%clk 0:00:09]}  Kf6 {[%clk 0:00:07]} 80. Rf5+ {[%clk 0:00:10]}  Ke6 {[%clk 0:00:07]} 81. Rb5 {[%clk 0:00:10]}  Ra4 {[%clk 0:00:08]} 82. Rb6+ {[%clk 0:00:10]}  Kf7 {[%clk 0:00:08]} 83. Rg6 {[%clk 0:00:11]}  Rf4 {[%clk 0:00:08]} 84. Ke3 {[%clk 0:00:11]}  Ra4 {[%clk 0:00:08]} 85. Kf3 {[%clk 0:00:11]}  Ra7 {[%clk 0:00:08]} 86. Rb6 {[%clk 0:00:11]}  Re7 {[%clk 0:00:09]} 87. Kf4 {[%clk 0:00:11]}  Re1 {[%clk 0:00:09]} 88. Rb7+ {[%clk 0:00:11]}  Kf6 {[%clk 0:00:09]} 89. Rb6+ {[%clk 0:00:11]}  Kf7 {[%clk 0:00:09]} 90. Kf3 {[%clk 0:00:12]}  Rf1+ {[%clk 0:00:10]} 91. Kg2 {[%clk 0:00:12]}  Rf6 {[%clk 0:00:10]} 92. Rb7+ {[%clk 0:00:12]}  Kg8 {[%clk 0:00:11]} 93. Kg3 {[%clk 0:00:13]}  Ra6 {[%clk 0:00:10]} 94. Rb8+ {[%clk 0:00:12]}  Kf7 {[%clk 0:00:10]} 95. Rb7+ {[%clk 0:00:13]}  Kf6 {[%clk 0:00:11]} 96. Rb5 {[%clk 0:00:13]}  Ra3+ {[%clk 0:00:11]} 97. Kf4 {[%clk 0:00:13]}  Ra6 {[%clk 0:00:11]} 98. Rf5+ {[%clk 0:00:12]}  Ke7 {[%clk 0:00:12]} 99. Re5+ {[%clk 0:00:12]}  Kf7 {[%clk 0:00:12]} 100. Kf5 {[%clk 0:00:12]}  Rf6+ {[%clk 0:00:11]} 101. Ke4 {[%clk 0:00:12]}  Ra6 {[%clk 0:00:12]} 102. Rb5 {[%clk 0:00:12]}  Ra4+ {[%clk 0:00:11]} 103. Kf5 {[%clk 0:00:12]}  Ra7 {[%clk 0:00:12]} 104. g5 {[%clk 0:00:12]}  hxg5 {[%clk 0:00:11]} 105. Kxg5 {[%clk 0:00:13]}  Kg8 {[%clk 0:00:11]} 106. Kg6 {[%clk 0:00:12]}  Ra6+ {[%clk 0:00:12]} 107. Kg5 {[%clk 0:00:13]}  Rf6 {[%clk 0:00:12]} 108. Rb8+ {[%clk 0:00:13]}  Kh7 {[%clk 0:00:13]} 109. Rb7 {[%clk 0:00:13]}  Ra6 {[%clk 0:00:14]} 110. Rb5 {[%clk 0:00:14]}  Rf6 {[%clk 0:00:14]} 111. Rd5 {[%clk 0:00:14]}  Ra6 {[%clk 0:00:13]} 112. Re5 {[%clk 0:00:15]}  Rh6 {[%clk 0:00:14]} 113. Re7 {[%clk 0:00:15]}  Ra6 {[%clk 0:00:14]} 114. Rf7 {[%clk 0:00:15]}  Ra5+ {[%clk 0:00:14]} 115. Kg4 {[%clk 0:00:16]}  Ra6 {[%clk 0:00:15]} 116. Kg5 {[%clk 0:00:16]}  Rh6 {[%clk 0:00:15]} 117. Rf5 {[%clk 0:00:16]}  Ra6 {[%clk 0:00:16]} 118. Re5 {[%clk 0:00:16]}  Rb6 {[%clk 0:00:15]} 119. Rf5 {[%clk 0:00:17]}  Rh6 {[%clk 0:00:15]} 120. Kg4 {[%clk 0:00:17]}  Ra6 {[%clk 0:00:15]} 121. Rg5 {[%clk 0:00:17]}  Kh6 {[%clk 0:00:15]} 122. Rf5 {[%clk 0:00:18]}  Ra4+ {[%clk 0:00:15]} 123. Kg3 {[%clk 0:00:18]}  Ra3+ {[%clk 0:00:15]} 124. Kg4 {[%clk 0:00:18]}  Ra1 {[%clk 0:00:15]} 125. Rc5 {[%clk 0:00:18]}  Rg1+ {[%clk 0:00:15]} 126. Kh4 {[%clk 0:00:19]}  Rh1+ {[%clk 0:00:14]} 127. Kg4 {[%clk 0:00:19]}  Rb1 {[%clk 0:00:13]} 128. Rc6+ {[%clk 0:00:19]}  Kh7 {[%clk 0:00:13]} 129. Kg5 {[%clk 0:00:19]}  Rb5+ {[%clk 0:00:13]} 130. Kg4 {[%clk 0:00:20]}  Ra5 {[%clk 0:00:14]} 131. Rd6 {[%clk 0:00:20]}  Ra4+ {[%clk 0:00:14]} 132. Kg5 {[%clk 0:00:20]}  Ra5+ {[%clk 0:00:15]} 133. Kg4 {[%clk 0:00:20]}  Rb5 {[%clk 0:00:14]} 134. Re6 {[%clk 0:00:20]}  Rc5 {[%clk 0:00:14]} 135. Re4 {[%clk 0:00:19]}  Kh6 {[%clk 0:00:12]} 136. Re6+ {[%clk 0:00:19]}  Kh7 {[%clk 0:00:13]} 137. Rg6 {[%clk 0:00:20]}  Rb5 {[%clk 0:00:13]} 138. Rc6 {[%clk 0:00:20]}  Rb4+ {[%clk 0:00:13]} 139. Kg5 {[%clk 0:00:20]}  Rb1 {[%clk 0:00:14]} 140. Kg4 {[%clk 0:00:20]}  Rg1+ {[%clk 0:00:13]} 141. Kh4 {[%clk 0:00:20]}  Rh1+ {[%clk 0:00:14]} 142. Kg4 {[%clk 0:00:21]}  Rf1 {[%clk 0:00:15]} 143. Rc5 {[%clk 0:00:21]}  Re1 {[%clk 0:00:15]} 144. Rf5 {[%clk 0:00:21]}  Rg1+ {[%clk 0:00:15]} 145. Kh4 {[%clk 0:00:21]}  Ra1 {[%clk 0:00:16]} 146. Kg3 {[%clk 0:00:21]}  Kh6 {[%clk 0:00:16]} 147. Kg4 {[%clk 0:00:21]}  Ra4+ {[%clk 0:00:16]} 148. Kg3 {[%clk 0:00:20]}  Rb4 {[%clk 0:00:16]} 149. Ra5 {[%clk 0:00:20]}  Rb6 {[%clk 0:00:16]} 150. Rc5 {[%clk 0:00:21]}  Rf6 {[%clk 0:00:17]} 151. Kg4 {[%clk 0:00:21]}  Rd6 {[%clk 0:00:17]} 152. Re5 {[%clk 0:00:21]}  Rd4+ {[%clk 0:00:16]} 153. Kg3 {[%clk 0:00:21]}  Ra4 {[%clk 0:00:17]} 154. Kh3 {[%clk 0:00:20]}  Rb4 {[%clk 0:00:16]} 155. Kg3 {[%clk 0:00:20]} 1/2-1/2


[Site "https://www.chess.com"]

[Event "Titled Tuesday Blitz May 30 Late 2023"]
[White "Dragomirescu, Robin-Alexandru"]
[Black "Tanenbaum, Zachary"]
[WhiteFideId "1213849"]
[BlackFideId "2060850"]
[WhiteElo "2356"]
[BlackElo "2175"]
[Result "1-0"]
[Round "11"]
[TimeControl "180+2"]
[Date "2023.05.31"]
[WhiteClock "0:00:10"]
[BlackClock "0:00:01"]

1. d4 {[%clk 0:03:00]}  d5 {[%clk 0:03:00]} 2. c4 {[%clk 0:03:00]}  dxc4 {[%clk 0:03:00]} 3. e3 {[%clk 0:02:59]}  e5 {[%clk 0:03:00]} 4. Bxc4 {[%clk 0:02:57]}  Nc6 {[%clk 0:03:01]} 5. d5 {[%clk 0:02:41]}  Na5 {[%clk 0:03:00]} 6. Bb5+ {[%clk 0:02:39]}  c6 {[%clk 0:03:00]} 7. dxc6 {[%clk 0:02:37]}  Qxd1+ {[%clk 0:02:59]} 8. Kxd1 {[%clk 0:02:38]}  Nxc6 {[%clk 0:02:59]} 9. Nf3 {[%clk 0:02:09]}  Bd6 {[%clk 0:02:57]} 10. Nc3 {[%clk 0:02:04]}  Bf5 {[%clk 0:02:52]} 11. e4 {[%clk 0:01:56]}  Bg4 {[%clk 0:02:50]} 12. Bxc6+ {[%clk 0:01:43]}  bxc6 {[%clk 0:02:49]} 13. Be3 {[%clk 0:01:41]}  Nf6 {[%clk 0:02:39]} 14. Kc2 {[%clk 0:01:28]}  Ke7 {[%clk 0:02:30]} 15. Nd2 {[%clk 0:01:27]}  Be6 {[%clk 0:02:27]} 16. f3 {[%clk 0:01:21]}  Rhb8 {[%clk 0:02:19]} 17. b3 {[%clk 0:01:13]}  a5 {[%clk 0:02:17]} 18. Na4 {[%clk 0:01:12]}  Nd7 {[%clk 0:02:16]} 19. Nb1 {[%clk 0:01:07]}  f5 {[%clk 0:02:07]} 20. Nbc3 {[%clk 0:01:07]}  c5 {[%clk 0:01:49]} 21. Nb2 {[%clk 0:00:41]}  Nb6 {[%clk 0:01:42]} 22. Rhd1 {[%clk 0:00:33]}  Rc8 {[%clk 0:01:21]} 23. Rd2 {[%clk 0:00:21]}  a4 {[%clk 0:01:20]} 24. Rad1 {[%clk 0:00:21]}  axb3+ {[%clk 0:01:19]} 25. axb3 {[%clk 0:00:22]}  Bb8 {[%clk 0:01:07]} 26. Bg5+ {[%clk 0:00:22]}  Kf7 {[%clk 0:01:05]} 27. Bd8 {[%clk 0:00:22]}  c4 {[%clk 0:00:55]} 28. Bxb6 {[%clk 0:00:18]}  cxb3+ {[%clk 0:00:54]} 29. Kd3 {[%clk 0:00:18]}  Ra6 {[%clk 0:00:48]} 30. Nca4 {[%clk 0:00:18]}  Rc6 {[%clk 0:00:24]} 31. Be3 {[%clk 0:00:17]}  f4 {[%clk 0:00:16]} 32. Bf2 {[%clk 0:00:17]}  Ra8 {[%clk 0:00:09]} 33. Nc5 {[%clk 0:00:16]}  Ba7 {[%clk 0:00:08]} 34. Nxe6 {[%clk 0:00:15]}  Bxf2 {[%clk 0:00:05]} 35. Rxf2 {[%clk 0:00:13]}  Kxe6 {[%clk 0:00:05]} 36. Rfd2 {[%clk 0:00:13]}  Ra2 {[%clk 0:00:03]} 37. Nc4 {[%clk 0:00:11]}  Ra4 {[%clk 0:00:02]} 38. Nb2 {[%clk 0:00:10]}  Ra2 {[%clk 0:00:02]} 39. Ke2 {[%clk 0:00:10]}  Rc2 {[%clk 0:00:01]} 40. Nd3 {[%clk 0:00:10]} 1-0


[Site "https://www.chess.com"]

[Event "Titled Tuesday Blitz May 30 Late 2023"]
[White "Goryachkina, Aleksandra"]
[Black "Jovic, Stanoje"]
[WhiteFideId "4147103"]
[BlackFideId "905020"]
[WhiteElo "2471"]
[BlackElo "2236"]
[Result "1-0"]
[Round "11"]
[TimeControl "180+2"]
[Date "2023.05.31"]
[WhiteClock "0:00:17"]
[BlackClock "0:00:01"]

1. e4 {[%clk 0:02:59]}  c6 {[%clk 0:02:59]} 2. d4 {[%clk 0:02:58]}  d5 {[%clk 0:03:00]} 3. e5 {[%clk 0:02:58]}  c5 {[%clk 0:03:00]} 4. dxc5 {[%clk 0:02:57]}  e6 {[%clk 0:03:00]} 5. Nf3 {[%clk 0:02:55]}  Bxc5 {[%clk 0:02:59]} 6. a3 {[%clk 0:02:54]}  a5 {[%clk 0:02:58]} 7. Bd3 {[%clk 0:02:49]}  Ne7 {[%clk 0:02:58]} 8. O-O {[%clk 0:02:48]}  Nbc6 {[%clk 0:02:57]} 9. Re1 {[%clk 0:02:47]}  Qb6 {[%clk 0:02:54]} 10. Qe2 {[%clk 0:02:41]}  Ng6 {[%clk 0:02:53]} 11. Nc3 {[%clk 0:02:40]}  a4 {[%clk 0:02:52]} 12. Bb5 {[%clk 0:02:32]}  O-O {[%clk 0:02:44]} 13. Rf1 {[%clk 0:01:57]}  Nd4 {[%clk 0:02:34]} 14. Nxd4 {[%clk 0:01:57]}  Bxd4 {[%clk 0:02:34]} 15. Nxa4 {[%clk 0:01:51]}  Qc7 {[%clk 0:02:31]} 16. Be3 {[%clk 0:01:43]}  Qxe5 {[%clk 0:02:26]} 17. Bxd4 {[%clk 0:01:31]}  Qxd4 {[%clk 0:02:26]} 18. Rad1 {[%clk 0:01:26]}  Qh4 {[%clk 0:02:20]} 19. Nb6 {[%clk 0:01:22]}  Rb8 {[%clk 0:02:05]} 20. c4 {[%clk 0:01:07]}  d4 {[%clk 0:01:48]} 21. f4 {[%clk 0:00:54]}  Rd8 {[%clk 0:01:27]} 22. c5 {[%clk 0:00:48]}  e5 {[%clk 0:01:19]} 23. f5 {[%clk 0:00:41]}  d3 {[%clk 0:00:34]} 24. Rxd3 {[%clk 0:00:34]}  Rxd3 {[%clk 0:00:25]} 25. Qxd3 {[%clk 0:00:34]}  Nf8 {[%clk 0:00:16]} 26. Qd6 {[%clk 0:00:25]}  Qd4+ {[%clk 0:00:15]} 27. Qxd4 {[%clk 0:00:26]}  exd4 {[%clk 0:00:15]} 28. g4 {[%clk 0:00:26]}  g6 {[%clk 0:00:12]} 29. Rf4 {[%clk 0:00:25]}  gxf5 {[%clk 0:00:11]} 30. gxf5 {[%clk 0:00:26]}  f6 {[%clk 0:00:10]} 31. Bc4+ {[%clk 0:00:19]}  Kh8 {[%clk 0:00:09]} 32. Rg4 {[%clk 0:00:19]}  Ng6 {[%clk 0:00:09]} 33. Nxc8 {[%clk 0:00:17]}  Rxc8 {[%clk 0:00:08]} 34. fxg6 {[%clk 0:00:17]}  hxg6 {[%clk 0:00:06]} 35. b4 {[%clk 0:00:17]}  Kg7 {[%clk 0:00:06]} 36. Rxd4 {[%clk 0:00:17]}  Re8 {[%clk 0:00:06]} 37. Rd7+ {[%clk 0:00:17]}  Kh6 {[%clk 0:00:06]} 38. Rxb7 {[%clk 0:00:17]}  Re3 {[%clk 0:00:06]} 39. c6 {[%clk 0:00:17]}  Rc3 {[%clk 0:00:03]} 40. Bd5 {[%clk 0:00:17]}  f5 {[%clk 0:00:02]} 41. c7 {[%clk 0:00:16]}  g5 {[%clk 0:00:02]} 42. Be6 {[%clk 0:00:17]}  f4 {[%clk 0:00:01]} 43. c8=Q {[%clk 0:00:17]} 1-0


[Site "https://www.chess.com"]

[Event "Titled Tuesday Blitz May 30 Late 2023"]
[White "Saveliev, Alexei"]
[Black "Arnold, Ken"]
[WhiteFideId "24128546"]
[BlackFideId "2056836"]
[WhiteElo "2271"]
[BlackElo "2430"]
[Result "1-0"]
[Round "11"]
[TimeControl "180+2"]
[Date "2023.05.31"]
[WhiteClock "0:00:48"]
[BlackClock "0:01:28"]

1. c4 {[%clk 0:02:53]}  c6 {[%clk 0:02:59]} 2. Nc3 {[%clk 0:02:50]}  Nf6 {[%clk 0:02:58]} 3. e4 {[%clk 0:02:50]}  d5 {[%clk 0:02:57]} 4. cxd5 {[%clk 0:02:46]}  cxd5 {[%clk 0:02:57]} 5. e5 {[%clk 0:02:47]}  d4 {[%clk 0:02:55]} 6. exf6 {[%clk 0:02:44]}  dxc3 {[%clk 0:02:55]} 7. bxc3 {[%clk 0:02:44]}  exf6 {[%clk 0:02:53]} 8. d4 {[%clk 0:02:43]}  Bd6 {[%clk 0:02:53]} 9. Bd3 {[%clk 0:02:42]}  O-O {[%clk 0:02:52]} 10. Qc2 {[%clk 0:02:39]}  g6 {[%clk 0:02:44]} 11. Ne2 {[%clk 0:02:37]}  Qc7 {[%clk 0:02:43]} 12. h4 {[%clk 0:02:32]}  Bg4 {[%clk 0:02:41]} 13. h5 {[%clk 0:02:26]}  Bxe2 {[%clk 0:02:40]} 14. Bxe2 {[%clk 0:02:23]}  Bf4 {[%clk 0:02:33]} 15. Bxf4 {[%clk 0:01:55]}  Qxf4 {[%clk 0:02:31]} 16. g3 {[%clk 0:01:50]}  Qg5 {[%clk 0:02:28]} 17. Bf3 {[%clk 0:01:41]}  Nc6 {[%clk 0:02:24]} 18. Kf1 {[%clk 0:01:40]}  Rac8 {[%clk 0:02:22]} 19. Qb2 {[%clk 0:01:21]}  b6 {[%clk 0:02:15]} 20. Kg2 {[%clk 0:01:20]}  Na5 {[%clk 0:02:12]} 21. Rae1 {[%clk 0:01:19]}  Rc7 {[%clk 0:02:05]} 22. hxg6 {[%clk 0:01:15]}  hxg6 {[%clk 0:02:04]} 23. Re4 {[%clk 0:01:01]}  Nc4 {[%clk 0:01:57]} 24. Qb4 {[%clk 0:00:50]}  a5 {[%clk 0:01:32]} 25. Rh8+ {[%clk 0:00:47]}  Kxh8 {[%clk 0:01:28]} 26. Qxf8+ {[%clk 0:00:48]}  Kh7 {[%clk 0:01:28]} 27. Rh4+ {[%clk 0:00:48]} 1-0


[Site "https://www.chess.com"]

[Event "Titled Tuesday Blitz May 30 Late 2023"]
[White "Toncheva, Nadya"]
[Black "Mekhitarian, Krikor Sevag"]
[WhiteFideId "2924056"]
[BlackFideId "2107660"]
[WhiteElo "2101"]
[BlackElo "2604"]
[Result "1-0"]
[Round "11"]
[TimeControl "180+2"]
[Date "2023.05.31"]
[WhiteClock "0:00:13"]
[BlackClock "0:00:02"]

1. d4 {[%clk 0:03:00]}  d5 {[%clk 0:02:58]} 2. c4 {[%clk 0:03:01]}  e6 {[%clk 0:02:58]} 3. Nc3 {[%clk 0:03:01]}  c5 {[%clk 0:02:58]} 4. cxd5 {[%clk 0:03:00]}  cxd4 {[%clk 0:02:59]} 5. Qa4+ {[%clk 0:03:00]}  Bd7 {[%clk 0:02:58]} 6. Qxd4 {[%clk 0:03:01]}  exd5 {[%clk 0:02:59]} 7. Qxd5 {[%clk 0:03:02]}  Nc6 {[%clk 0:02:54]} 8. e3 {[%clk 0:02:58]}  Nf6 {[%clk 0:02:54]} 9. Qd1 {[%clk 0:02:58]}  Bc5 {[%clk 0:02:55]} 10. Nf3 {[%clk 0:02:58]}  Qe7 {[%clk 0:02:49]} 11. Be2 {[%clk 0:02:58]}  O-O {[%clk 0:02:49]} 12. O-O {[%clk 0:02:57]}  Rfd8 {[%clk 0:02:49]} 13. Qc2 {[%clk 0:02:42]}  Nb4 {[%clk 0:02:33]} 14. Qb3 {[%clk 0:02:14]}  a5 {[%clk 0:02:27]} 15. Bd2 {[%clk 0:02:05]}  a4 {[%clk 0:02:24]} 16. Qc4 {[%clk 0:02:01]}  Be6 {[%clk 0:02:07]} 17. Qh4 {[%clk 0:02:00]}  h6 {[%clk 0:01:45]} 18. a3 {[%clk 0:01:57]}  Nc6 {[%clk 0:01:38]} 19. Rad1 {[%clk 0:01:40]}  Bb3 {[%clk 0:01:36]} 20. Rc1 {[%clk 0:01:38]}  Ne5 {[%clk 0:01:26]} 21. Nxe5 {[%clk 0:01:23]}  Qxe5 {[%clk 0:01:08]} 22. Be1 {[%clk 0:01:23]}  Rd6 {[%clk 0:00:45]} 23. Nb5 {[%clk 0:01:18]}  Rc6 {[%clk 0:00:17]} 24. Bc3 {[%clk 0:01:16]}  Qg5 {[%clk 0:00:15]} 25. Qxg5 {[%clk 0:01:15]}  hxg5 {[%clk 0:00:16]} 26. Bf3 {[%clk 0:01:14]}  Nd5 {[%clk 0:00:12]} 27. Nd4 {[%clk 0:00:57]}  Bxd4 {[%clk 0:00:10]} 28. Bxd4 {[%clk 0:00:58]}  Rac8 {[%clk 0:00:08]} 29. Rxc6 {[%clk 0:00:56]}  Rxc6 {[%clk 0:00:09]} 30. h3 {[%clk 0:00:44]}  Rc2 {[%clk 0:00:09]} 31. Bd1 {[%clk 0:00:41]}  Rc8 {[%clk 0:00:08]} 32. Bxb3 {[%clk 0:00:40]}  axb3 {[%clk 0:00:09]} 33. Rd1 {[%clk 0:00:40]}  Rc2 {[%clk 0:00:03]} 34. Kf1 {[%clk 0:00:39]}  f5 {[%clk 0:00:02]} 35. Ke1 {[%clk 0:00:38]}  f4 {[%clk 0:00:02]} 36. Rd2 {[%clk 0:00:37]}  Rc1+ {[%clk 0:00:02]} 37. Ke2 {[%clk 0:00:37]}  fxe3 {[%clk 0:00:02]} 38. fxe3 {[%clk 0:00:37]}  Kf7 {[%clk 0:00:02]} 39. Rd3 {[%clk 0:00:31]}  Rc2+ {[%clk 0:00:02]} 40. Kf3 {[%clk 0:00:30]}  Nc7 {[%clk 0:00:02]} 41. Rxb3 {[%clk 0:00:30]}  Ne6 {[%clk 0:00:03]} 42. Rxb7+ {[%clk 0:00:30]}  Kg6 {[%clk 0:00:04]} 43. Bc3 {[%clk 0:00:29]}  Kf5 {[%clk 0:00:03]} 44. Rb5+ {[%clk 0:00:29]}  Kg6 {[%clk 0:00:03]} 45. a4 {[%clk 0:00:26]}  Rc1 {[%clk 0:00:03]} 46. a5 {[%clk 0:00:26]}  Rf1+ {[%clk 0:00:03]} 47. Ke2 {[%clk 0:00:26]}  Ra1 {[%clk 0:00:04]} 48. Rb6 {[%clk 0:00:25]}  Kf7 {[%clk 0:00:04]} 49. a6 {[%clk 0:00:25]}  Nc5 {[%clk 0:00:04]} 50. Bd4 {[%clk 0:00:21]}  Nxa6 {[%clk 0:00:05]} 51. Rb7+ {[%clk 0:00:21]}  Ke6 {[%clk 0:00:05]} 52. Rxg7 {[%clk 0:00:21]}  Nb4 {[%clk 0:00:05]} 53. Rg6+ {[%clk 0:00:21]}  Kd5 {[%clk 0:00:05]} 54. Rxg5+ {[%clk 0:00:21]}  Ke6 {[%clk 0:00:06]} 55. Re5+ {[%clk 0:00:21]}  Kf7 {[%clk 0:00:06]} 56. Rb5 {[%clk 0:00:21]}  Nc6 {[%clk 0:00:04]} 57. h4 {[%clk 0:00:19]}  Rg1 {[%clk 0:00:03]} 58. Kf2 {[%clk 0:00:19]}  Rd1 {[%clk 0:00:04]} 59. Bc3 {[%clk 0:00:19]}  Rh1 {[%clk 0:00:04]} 60. Rc5 {[%clk 0:00:18]}  Ne7 {[%clk 0:00:04]} 61. Rc7 {[%clk 0:00:18]}  Ke6 {[%clk 0:00:04]} 62. g3 {[%clk 0:00:17]}  Nf5 {[%clk 0:00:04]} 63. Rc6+ {[%clk 0:00:17]}  Kd5 {[%clk 0:00:05]} 64. Rf6 {[%clk 0:00:16]}  Ke4 {[%clk 0:00:05]} 65. Re6+ {[%clk 0:00:16]}  Kd3 {[%clk 0:00:05]} 66. Kf3 {[%clk 0:00:13]}  Rf1+ {[%clk 0:00:05]} 67. Kg4 {[%clk 0:00:13]}  Nxe3+ {[%clk 0:00:05]} 68. Rxe3+ {[%clk 0:00:13]}  Kxe3 {[%clk 0:00:06]} 69. h5 {[%clk 0:00:14]}  Rh1 {[%clk 0:00:04]} 70. Kg5 {[%clk 0:00:14]}  Kf3 {[%clk 0:00:04]} 71. h6 {[%clk 0:00:13]}  Rg1 {[%clk 0:00:04]} 72. h7 {[%clk 0:00:12]}  Rxg3+ {[%clk 0:00:05]} 73. Kf5 {[%clk 0:00:12]}  Rh3 {[%clk 0:00:05]} 74. h8=Q {[%clk 0:00:12]}  Rxh8 {[%clk 0:00:02]} 75. Bxh8 {[%clk 0:00:13]} 1-0


[Site "https://www.chess.com"]

[Event "Titled Tuesday Blitz May 30 Late 2023"]
[White "Uzcategui Rodriguez, Alejandro"]
[Black "Makridis, Dimitrios"]
[WhiteFideId "3903400"]
[BlackFideId "25864475"]
[WhiteElo "2252"]
[BlackElo "2277"]
[Result "0-1"]
[Round "11"]
[TimeControl "180+2"]
[Date "2023.05.31"]
[WhiteClock "0:00:07"]
[BlackClock "0:01:07"]

1. e4 {[%clk 0:02:34]}  c5 {[%clk 0:02:37]} 2. Nf3 {[%clk 0:02:33]}  d6 {[%clk 0:02:36]} 3. d4 {[%clk 0:02:33]}  cxd4 {[%clk 0:02:07]} 4. Nxd4 {[%clk 0:02:34]}  a6 {[%clk 0:02:08]} 5. Nc3 {[%clk 0:02:32]}  Nf6 {[%clk 0:02:08]} 6. Bc4 {[%clk 0:02:31]}  e6 {[%clk 0:02:07]} 7. Bb3 {[%clk 0:02:27]}  b5 {[%clk 0:02:07]} 8. Qf3 {[%clk 0:02:26]}  Bb7 {[%clk 0:02:06]} 9. a3 {[%clk 0:02:24]}  Nc6 {[%clk 0:02:05]} 10. Be3 {[%clk 0:02:23]}  Rc8 {[%clk 0:02:02]} 11. O-O {[%clk 0:02:21]}  Ne5 {[%clk 0:02:01]} 12. Qe2 {[%clk 0:02:19]}  Rxc3 {[%clk 0:02:01]} 13. bxc3 {[%clk 0:02:18]}  Nxe4 {[%clk 0:02:01]} 14. Bd2 {[%clk 0:02:15]}  Be7 {[%clk 0:01:59]} 15. a4 {[%clk 0:02:15]}  O-O {[%clk 0:01:55]} 16. axb5 {[%clk 0:02:13]}  axb5 {[%clk 0:01:56]} 17. f3 {[%clk 0:01:49]}  Nxd2 {[%clk 0:01:46]} 18. Qxd2 {[%clk 0:01:47]}  Qb6 {[%clk 0:01:41]} 19. Kh1 {[%clk 0:01:45]}  d5 {[%clk 0:01:37]} 20. f4 {[%clk 0:01:44]}  Nc6 {[%clk 0:01:35]} 21. f5 {[%clk 0:01:42]}  b4 {[%clk 0:01:25]} 22. fxe6 {[%clk 0:01:09]}  bxc3 {[%clk 0:01:19]} 23. exf7+ {[%clk 0:00:33]}  Kh8 {[%clk 0:01:18]} 24. Qe3 {[%clk 0:00:19]}  Qxd4 {[%clk 0:01:14]} 25. Qxd4 {[%clk 0:00:19]}  Nxd4 {[%clk 0:01:15]} 26. Ra7 {[%clk 0:00:19]}  Nxb3 {[%clk 0:01:11]} 27. Rxb7 {[%clk 0:00:19]}  Nd2 {[%clk 0:01:09]} 28. Rxe7 {[%clk 0:00:19]}  g6 {[%clk 0:01:07]} 29. Re8 {[%clk 0:00:18]}  Kg7 {[%clk 0:01:08]} 30. Rxf8 {[%clk 0:00:14]}  Kxf8 {[%clk 0:01:06]} 31. Rf2 {[%clk 0:00:13]}  d4 {[%clk 0:01:07]} 32. Kg1 {[%clk 0:00:12]}  d3 {[%clk 0:01:07]} 33. cxd3 {[%clk 0:00:07]}  c2 {[%clk 0:01:07]} 0-1


[Site "https://www.chess.com"]